fUSD/lending_fUSD_20250505
["ID","MTS","AMOUNT","RATE_DAILY","PERIOD"]
[360002777,1746474651598,-450.0,0.00019999,2]
[360002778,1746474651607,-450.0,0.00019999,2]
[360002779,1746474651617,-450.0,0.00019999,2]
[360002780,1746474651626,-361.94,0.00019999,2]
[360002781,1746474651636,-626.5,0.00019999,2]
[360002782,1746474651645,-626.5,0.00019999,2]
[360002783,1746474651654,-626.5,0.00019999,2]
[360002784,1746474651663,-626.5,0.00019999,2]
[360002785,1746474651673,-626.5,0.00019999,2]
[360002786,1746474651682,-626.5,0.00019999,2]
[360002787,1746474651692,-626.5,0.00019999,2]
[360002788,1746474651701,-626.5,0.00019999,2]
[360002789,1746474651710,-626.5,0.00019999,2]
[360002790,1746474651719,-626.5,0.00019999,2]
[360002791,1746474651729,-626.5,0.00019999,2]
[360002792,1746474651738,-626.5,0.00019999,2]
[360002793,1746474651747,-626.5,0.00019999,2]
[360002794,1746474651756,-626.5,0.00019999,2]
[360002795,1746474651766,-626.5,0.00019999,2]
[360002796,1746474651775,-626.5,0.00019999,2]
[360002797,1746474651784,-626.5,0.00019999,2]
[360002798,1746474651794,-626.5,0.00019999,2]
[360002799,1746474651803,-626.5,0.00019999,2]
[360002800,1746474651813,-626.55,0.00019999,2]
[360002801,1746474651822,-450.56,0.00019999,2]
[360002802,1746474651832,-450.56,0.00019999,2]
[360002803,1746474651841,-450.56,0.00019999,2]
[360002804,1746474651851,-450.56,0.00019999,2]
[360002805,1746474651860,-450.56,0.00019999,2]
[360002806,1746474651869,-450.56,0.00019999,2]
[360002807,1746474651879,-450.56,0.00019999,2]
[360002808,1746474651889,-450.56,0.00019999,2]
[360002809,1746474651899,-450.56,0.00019999,2]
[360002810,1746474651908,-450.56,0.00019999,2]
[360002811,1746474651918,-37615.55100364,0.0002,2]
[360002812,1746474651927,-205925.189642,0.0002,2]
[360002813,1746474651938,-364427.92943418,0.0002,2]
[360002814,1746474651958,-450.56,0.00019999,2]
[360002815,1746474651968,-23471.81937527,0.0002,2]
[360002816,1746474651978,-250553.14779662,0.0002,2]
[360002817,1746474652073,-450.0,0.00019899,2]
[360002818,1746474652083,-450.56,0.00019999,2]
[360002819,1746474652092,-450.56,0.00019999,2]
[360002820,1746474652101,-450.56,0.00019999,2]
[360002821,1746474652111,-450.56,0.00019999,2]
[360002822,1746474652120,-450.56,0.00019999,2]
[360002823,1746474652129,-450.56,0.00019999,2]
[360002824,1746474652138,-450.56,0.00019999,2]
[360002825,1746474652148,-450.56,0.00019999,2]
[360002826,1746474652157,-450.75,0.00019999,2]
[360002827,1746474652167,-1409.478596,0.0002,2]
[360002828,1746474652182,-557.084731,0.0002,2]
[360002829,1746474765141,2778.76317119,0.00018954,2]
[360002830,1746474781248,2826.4705957,0.00018954,2]
[360002835,1746474846597,622.8,0.00017105,2]
[360002836,1746474846824,622.8,0.00019369,2]
[360002838,1746474936660,155.8,0.00019027,2]
[360002839,1746475028388,-152.0,0.00019584,2]
[360002840,1746475031722,-14.68,0.00019584,2]
[360002841,1746475031745,-144.71425024,0.0001974,2]
[360002842,1746475032257,-14.6963603,0.0001974,2]
[360002843,1746475032450,-144.69788994,0.00019799,2]
[360002844,1746475038702,-212.70704317,0.00019799,2]
[360002845,1746475062622,-212.70704317,0.00019799,2]
[360002846,1746475083213,-212.70704317,0.00019799,2]
[360002847,1746475098807,-200.0,0.000196,2]
[360002848,1746475098829,-12.70704317,0.00019799,2]
[360002849,1746475099170,250.0,0.00017,2]
[360002850,1746475100268,300.0,0.00019,2]
[360002851,1746475236019,2020.7578305,0.0003,30]
[360002852,1746475252553,23900.0,0.00018982,2]
[360002853,1746475310830,277.74,0.00019027,2]
[360002857,1746475405787,-159.41061053,0.00019699,2]
[360002858,1746475481404,1000.0,0.00018943,2]
[360002863,1746475550398,-280.67596386,0.000197,2]
[360002864,1746475632333,-398.34422388,0.00019601,2]
[360002865,1746475635473,-0.55685912,0.00019601,2]
[360002982,1746475832196,-513.74121267,0.000197,2]
[360002983,1746475832209,-205.58282347,0.000197,2]
[360002984,1746475832219,-200.0,0.000197,2]
[360002985,1746475832229,-159.41061053,0.000197,2]
[360002986,1746475832239,-250.0,0.00019718,2]
[360002987,1746475832249,-200.0,0.00019736,2]
[360002988,1746475832258,-154.85634558,0.00019756,2]
[360002989,1746475832268,-150.0,0.00019772,2]
[360002990,1746475832278,-1489.2485423,0.00019799,2]
[360002991,1746475832287,-1000.0,0.000198,2]
[360002992,1746475832297,-200.0,0.0001984,2]
[360002993,1746475832307,-207.4,0.00019885,2]
[360002994,1746475832317,-826.90348108,0.00019886,2]
[360002995,1746475832374,-86.04736912,0.00019886,2]
[360002996,1746475832384,-242.20354226,0.00019887,2]
[360002997,1746475832395,-957.79645774,0.00019887,2]
[360002998,1746475832406,-912.95085017,0.00019888,2]
[360002999,1746475832416,-912.95085017,0.00019889,2]
[360003000,1746475832430,-300.0,0.0001989,2]
[360003001,1746475832444,-912.95085017,0.00019891,2]
[360003002,1746475832456,-589.41402404,0.00019892,2]
[360003003,1746475832493,-323.53682613,0.00019892,2]
[360003004,1746475832503,-912.95085017,0.00019894,2]
[360003005,1746475832515,-150.0,0.00019894,2]
[360003006,1746475832526,-912.95085017,0.00019895,2]
[360003007,1746475832538,-912.95085017,0.00019897,2]
[360003008,1746475832549,-488.99,0.00019897,2]
[360003009,1746475832560,-150.99,0.00019897,2]
[360003010,1746475832572,-299.99,0.00019897,7]
[360003011,1746475832583,-6338.93593846,0.00019897,2]
[360003012,1746475832597,-853.29406154,0.00019897,2]
[360003013,1746475832609,-999.99,0.00019897,2]
[360003014,1746475832620,-912.95085017,0.00019898,2]
[360003015,1746475832631,-504.45588881,0.00019899,2]
[360003016,1746475832642,-450.0,0.00019899,2]
[360003017,1746475832652,-450.0,0.00019899,2]
[360003018,1746475832662,-450.0,0.00019899,2]
[360003019,1746475832674,-450.0,0.00019899,2]
[360003021,1746475832687,-450.0,0.00019899,2]
[360003023,1746475832699,-412.89747648,0.00019899,2]
[360003026,1746475832713,-37.10252352,0.00019899,2]
[360003029,1746475832724,-450.0,0.00019899,2]
[360003031,1746475832737,-450.0,0.00019899,2]
[360003032,1746475832748,-110.75058906,0.00019899,2]
[360003033,1746475832770,-365.60000001,0.00019899,2]
[360003034,1746475832814,-39.75941093,0.00019899,2]
[360003035,1746475832828,-358.29345408,0.00019899,2]
[360003036,1746475832861,-91.70654592,0.00019899,2]
[360003037,1746475832873,-450.0,0.00019899,2]
[360003038,1746475832884,-25.32130969,0.00019899,2]
[360003039,1746475832898,-424.67869031,0.00019899,2]
[360003040,1746475832908,-450.0,0.00019899,2]
[360003041,1746475832920,-450.0,0.00019899,2]
[360003042,1746475832934,-94.73971448,0.00019899,2]
[360003043,1746475832948,-355.26028552,0.00019899,2]
[360003044,1746475832962,-450.0,0.00019899,2]
[360003045,1746475832972,-90.88572893,0.00019899,2]
[360003057,1746475838309,-359.11427107,0.00019899,2]
[360003058,1746475838321,-450.0,0.00019899,2]
[360003059,1746475838332,-450.0,0.00019899,2]
[360003060,1746475838343,-510.51,0.00019899,2]
[360003061,1746475838354,-450.0,0.00019899,2]
[360003062,1746475838364,-450.0,0.00019899,2]
[360003063,1746475838375,-450.0,0.00019899,2]
[360003064,1746475838387,-450.0,0.00019899,2]
[360003065,1746475838397,-450.0,0.00019899,2]
[360003066,1746475838407,-450.0,0.00019899,2]
[360003067,1746475838416,-450.0,0.00019899,2]
[360003068,1746475838426,-204.91228373,0.00019899,2]
[360003069,1746475838437,-1546.79096313,0.00019899,2]
[360003070,1746475838447,-1546.79096311,0.00019899,2]
[360003071,1746475838456,-1546.79096311,0.00019899,2]
[360003083,1746475838675,-1546.79096311,0.00019899,2]
[360003085,1746475838686,-1546.79096311,0.00019899,2]
[360003087,1746475838695,-1546.79096311,0.000199,2]
[360003089,1746475838705,-1546.79096311,0.000199,2]
[360003091,1746475838714,-1546.79096311,0.000199,2]
[360003092,1746475838723,-1546.79096311,0.000199,2]
[360003094,1746475838732,-1546.79096311,0.000199,2]
[360003096,1746475838742,-912.95085017,0.000199,2]
[360003098,1746475838751,-700.455051,0.00019918,2]
[360003100,1746475838760,-5931.0,0.00019946,2]
[360003102,1746475838772,-150.0,0.0001997,2]
[360003104,1746475838780,-500.0,0.00019973,2]
[360003106,1746475838790,-500.0,0.00019973,2]
[360003109,1746475838799,-500.0,0.00019984,2]
[360003112,1746475838809,-500.0,0.00019984,2]
[360003115,1746475838819,-500.0,0.00019984,2]
[360003118,1746475838828,-500.0,0.00019984,2]
[360003120,1746475838837,-500.0,0.00019984,2]
[360003122,1746475838850,-500.0,0.00019984,2]
[360003124,1746475838860,-500.0,0.00019984,2]
[360003126,1746475838869,-500.0,0.00019984,2]
[360003128,1746475838878,-500.0,0.00019984,2]
[360003129,1746475838887,-500.0,0.00019984,2]
[360003131,1746475838896,-500.0,0.00019984,2]
[360003133,1746475838906,-500.0,0.00019984,2]
[360003135,1746475838916,-500.0,0.00019984,2]
[360003137,1746475838925,-500.0,0.00019984,2]
[360003139,1746475838935,-500.0,0.00019984,2]
[360003141,1746475838945,-350.32208953,0.00019984,2]
[360003144,1746475838962,-149.67791047,0.00019984,2]
[360003146,1746475838971,-273.6820896,0.00019984,2]
[360003294,1746475840401,-54.0743813,0.00019984,2]
[360003296,1746475840411,-500.0,0.00019984,2]
[360003298,1746475840420,-500.0,0.00019984,2]
[360003300,1746475840430,-500.0,0.00019984,2]
[360003302,1746475840439,-500.0,0.00019984,2]
[360003304,1746475840448,-500.0,0.00019984,2]
[360003306,1746475840458,-500.0,0.00019984,2]
[360003308,1746475840468,-500.0,0.00019984,2]
[360003310,1746475840479,-500.0,0.00019984,2]
[360003312,1746475840488,-500.0,0.00019984,2]
[360003314,1746475840497,-500.0,0.00019984,2]
[360003316,1746475840506,-500.0,0.00019984,2]
[360003318,1746475840515,-500.0,0.00019984,2]
[360003320,1746475840524,-500.0,0.00019984,2]
[360003322,1746475840534,-500.0,0.00019984,2]
[360003324,1746475840543,-500.0,0.00019984,2]
[360003326,1746475840552,-500.0,0.00019984,2]
[360003328,1746475840561,-500.0,0.00019984,2]
[360003330,1746475840570,-500.0,0.00019984,2]
[360003332,1746475840579,-500.0,0.00019984,2]
[360003334,1746475840588,-500.0,0.00019984,2]
[360003336,1746475840598,-500.0,0.00019984,2]
[360003338,1746475840607,-500.0,0.00019984,2]
[360003340,1746475840615,-7962.7603288,0.00019986,2]
[360003342,1746475840624,-55010.0842462,0.00019986,2]
[360003344,1746475840634,-2594.5835738,0.00019986,2]
[360003346,1746475840643,-450.0,0.00019988,2]
[360003347,1746475840652,-470.0,0.00019988,2]
[360003349,1746475840661,-450.0,0.00019988,2]
[360003351,1746475840670,-450.0,0.00019988,2]
[360003353,1746475840679,-450.0,0.00019988,2]
[360003355,1746475840688,-387.018064,0.00019988,2]
[360003357,1746475840697,-450.0,0.00019988,2]
[360003359,1746475840707,-450.0,0.00019988,2]
[360003361,1746475840715,-450.0,0.00019988,2]
[360003363,1746475840725,-501.52926627,0.00019988,2]
[360003365,1746475840734,-450.0,0.00019988,2]
[360003367,1746475840743,-450.0,0.00019988,2]
[360003369,1746475840752,-450.0,0.00019988,2]
[360003371,1746475840762,-450.0,0.00019988,2]
[360003373,1746475840774,-450.0,0.00019988,2]
[360003376,1746475840783,-450.0,0.00019988,2]
[360003378,1746475840792,-450.0,0.00019988,2]
[360003380,1746475840802,-450.0,0.00019988,2]
[360003382,1746475840813,-450.0,0.00019988,2]
[360003384,1746475840822,-450.0,0.00019988,2]
[360003386,1746475840831,-450.0,0.00019988,2]
[360003388,1746475840840,-450.0,0.00019988,2]
[360003390,1746475840851,-526.08533867,0.00019988,2]
[360003392,1746475840862,-532.36,0.00019988,2]
[360003394,1746475840871,-450.0,0.00019988,2]
[360003396,1746475840881,-555.19635294,0.00019988,2]
[360003398,1746475840890,-450.0,0.00019988,2]
[360003400,1746475840900,-450.0,0.00019988,2]
[360003402,1746475840909,-450.0,0.00019988,2]
[360003404,1746475840918,-450.0,0.00019988,2]
[360003406,1746475840927,-1289.597,0.00019991,2]
[360003408,1746475840937,-450.0,0.00019996,2]
[360003410,1746475840946,-450.0,0.00019996,2]
[360003412,1746475840955,-450.0,0.00019996,2]
[360003414,1746475840964,-450.0,0.00019996,2]
[360003416,1746475840974,-329.71,0.00019996,2]
[360003418,1746475840984,-348.81,0.00019996,2]
[360003420,1746475840993,-450.0,0.00019996,2]
[360003422,1746475841003,-559.8,0.00019996,2]
[360003424,1746475841012,-450.0,0.00019996,2]
[360003426,1746475841021,-450.0,0.00019997,2]
[360003428,1746475841030,-450.0,0.00019997,2]
[360003430,1746475841039,-450.0,0.00019997,2]
[360003432,1746475841049,-450.0,0.00019997,2]
[360003434,1746475841058,-450.0,0.00019997,2]
[360003436,1746475841067,-450.0,0.00019997,2]
[360003438,1746475841075,-520.32,0.00019997,2]
[360003440,1746475841085,-450.0,0.00019997,2]
[360003442,1746475841094,-450.0,0.00019997,2]
[360003444,1746475841103,-450.0,0.00019997,2]
[360003446,1746475841112,-450.0,0.00019998,2]
[360003448,1746475841121,-450.0,0.00019998,2]
[360003450,1746475841130,-450.0,0.00019998,2]
[360003452,1746475841139,-450.0,0.00019998,2]
[360003454,1746475841148,-357.1,0.00019998,2]
[360003456,1746475841157,-535.08,0.00019998,2]
[360003458,1746475841167,-450.0,0.00019998,2]
[360003460,1746475841176,-450.0,0.00019998,2]
[360003462,1746475841186,-450.0,0.00019998,2]
[360003463,1746475841195,-450.0,0.00019998,2]
[360003466,1746475841205,-450.0,0.00019998,2]
[360003467,1746475841214,-450.0,0.00019998,2]
[360003470,1746475841223,-450.0,0.00019998,2]
[360003471,1746475841232,-450.0,0.00019998,2]
[360003473,1746475841242,-7435.31,0.00019998,2]
[360003475,1746475841251,-450.0,0.00019998,2]
[360003477,1746475841260,-450.0,0.00019998,2]
[360003479,1746475841270,-392.8,0.00019998,2]
[360003481,1746475841279,-450.0,0.00019998,2]
[360003483,1746475841288,-450.0,0.00019998,2]
[360003485,1746475841297,-450.0,0.00019998,2]
[360003487,1746475841306,-450.0,0.00019998,2]
[360003489,1746475841315,-353.16523101,0.00019998,2]
[360003491,1746475841324,-181.87,0.00019998,2]
[360003493,1746475841334,-500.0,0.00019998,2]
[360003495,1746475841343,-450.0,0.00019998,2]
[360003497,1746475841353,-450.0,0.00019998,2]
[360003499,1746475841362,-594.06,0.00019998,2]
[360003501,1746475841373,-450.0,0.00019998,2]
[360003503,1746475841383,-450.0,0.00019998,2]
[360003505,1746475841393,-450.0,0.00019998,2]
[360003507,1746475841402,-450.0,0.00019998,2]
[360003509,1746475841411,-450.0,0.00019998,2]
[360003511,1746475841421,-450.0,0.00019998,2]
[360003513,1746475841429,-450.0,0.00019998,2]
[360003515,1746475841439,-450.0,0.00019998,2]
[360003517,1746475841449,-450.0,0.00019998,2]
[360003519,1746475841459,-450.0,0.00019998,2]
[360003521,1746475841469,-450.0,0.00019998,2]
[360003523,1746475841478,-450.0,0.00019998,2]
[360003525,1746475841488,-160.42,0.00019998,2]
[360003527,1746475841497,-450.0,0.00019998,2]
[360003529,1746475841506,-450.0,0.00019998,2]
[360003531,1746475841517,-450.0,0.00019998,2]
[360003533,1746475841527,-450.0,0.00019998,2]
[360003535,1746475841536,-450.0,0.00019998,2]
[360003537,1746475841545,-450.0,0.00019998,2]
[360003539,1746475841554,-522.08,0.00019998,2]
[360003541,1746475841563,-450.0,0.00019998,2]
[360003543,1746475841572,-450.0,0.00019998,2]
[360003545,1746475841581,-450.0,0.00019998,2]
[360003547,1746475841590,-450.0,0.00019998,2]
[360003549,1746475841600,-450.0,0.00019998,2]
[360003551,1746475841609,-450.0,0.00019998,2]
[360003553,1746475841619,-450.0,0.00019998,2]
[360003555,1746475841628,-450.0,0.00019998,2]
[360003557,1746475841637,-150.44368225,0.00019998,2]
[360003559,1746475841646,-500.0,0.00019998,2]
[360003561,1746475841655,-159.99810214,0.00019998,2]
[360003563,1746475841664,-159.40508125,0.00019998,2]
[360003565,1746475841674,-500.0,0.00019998,2]
[360003567,1746475841683,-500.0,0.00019998,2]
[360003569,1746475841692,-427.31887247,0.00019998,2]
[360003571,1746475841701,-450.0,0.00019998,2]
[360003573,1746475841710,-2124.9,0.00019998,2]
[360003575,1746475841719,-450.0,0.00019998,2]
[360003577,1746475841728,-450.0,0.00019998,2]
[360003579,1746475841738,-450.0,0.00019998,2]
[360003581,1746475841748,-450.0,0.00019998,2]
[360003583,1746475841757,-450.0,0.00019998,2]
[360003585,1746475841771,-156.21,0.00019999,2]
[360003587,1746475841780,-223.34,0.00019999,2]
[360003588,1746475841790,-154.98053032,0.00019999,2]
[360003589,1746475841799,-450.0,0.00019999,2]
[360003590,1746475841809,-450.0,0.00019999,2]
[360003591,1746475841819,-450.0,0.00019999,2]
[360003592,1746475841828,-450.0,0.00019999,2]
[360003593,1746475841837,-450.0,0.00019999,2]
[360003594,1746475841848,-450.0,0.00019999,2]
[360003595,1746475841858,-450.0,0.00019999,2]
[360003596,1746475841867,-450.0,0.00019999,2]
[360003597,1746475841878,-450.0,0.00019999,2]
[360003598,1746475841887,-450.0,0.00019999,2]
[360003599,1746475841896,-450.0,0.00019999,2]
[360003600,1746475841905,-450.0,0.00019999,2]
[360003601,1746475841915,-450.0,0.00019999,2]
[360003602,1746475841924,-450.0,0.00019999,2]
[360003603,1746475841934,-450.0,0.00019999,2]
[360003605,1746475841943,-432.79,0.00019999,2]
[360003607,1746475841952,-570.07,0.00019999,2]
[360003609,1746475841962,-7435.31,0.00019999,2]
[360003611,1746475841971,-7435.31,0.00019999,2]
[360003613,1746475841980,-7435.31,0.00019999,2]
[360003615,1746475841989,-7435.31,0.00019999,2]
[360003617,1746475841999,-7435.31,0.00019999,2]
[360003619,1746475842008,-7435.31,0.00019999,2]
[360003621,1746475842017,-7435.31,0.00019999,2]
[360003623,1746475842026,-7435.31,0.00019999,2]
[360003625,1746475842036,-7435.31,0.00019999,2]
[360003627,1746475842044,-7435.31,0.00019999,2]
[360003629,1746475842054,-7435.31,0.00019999,2]
[360003631,1746475842063,-7435.31,0.00019999,2]
[360003633,1746475842073,-7435.31,0.00019999,2]
[360003635,1746475842082,-7435.31,0.00019999,2]
[360003637,1746475842091,-7435.31,0.00019999,2]
[360003639,1746475842100,-7435.31,0.00019999,2]
[360003641,1746475842109,-7435.31,0.00019999,2]
[360003643,1746475842119,-7435.31,0.00019999,2]
[360003645,1746475842128,-7435.31,0.00019999,2]
[360003647,1746475842137,-7435.31,0.00019999,2]
[360003649,1746475842147,-7435.31,0.00019999,2]
[360003651,1746475842156,-7435.31,0.00019999,2]
[360003653,1746475842168,-7435.4711,0.00019999,2]
[360003655,1746475842178,-173.57,0.00019999,2]
[360003657,1746475842187,-364.33,0.00019999,2]
[360003659,1746475842197,-450.0,0.00019999,2]
[360003661,1746475842205,-450.0,0.00019999,2]
[360003663,1746475842215,-450.0,0.00019999,2]
[360003665,1746475842224,-450.0,0.00019999,2]
[360003667,1746475842234,-450.0,0.00019999,2]
[360003669,1746475842242,-450.0,0.00019999,2]
[360003671,1746475842252,-450.0,0.00019999,2]
[360003673,1746475842261,-450.0,0.00019999,2]
[360003675,1746475842271,-442.57,0.00019999,2]
[360003677,1746475842280,-532.72,0.00019999,2]
[360003679,1746475842289,-200.0,0.00019999,2]
[360003681,1746475842298,-267.0,0.00019999,2]
[360003683,1746475842307,-150.0,0.00019999,2]
[360003685,1746475842316,-250.0,0.00019999,2]
[360003687,1746475842325,-150.0,0.00019999,2]
[360003688,1746475842335,-150.0,0.00019999,2]
[360003690,1746475842344,-150.0,0.00019999,2]
[360003692,1746475842355,-200.0,0.00019999,2]
[360003694,1746475842369,-450.0,0.00019999,2]
[360003696,1746475842378,-450.0,0.00019999,2]
[360003698,1746475842388,-450.0,0.00019999,2]
[360003700,1746475842397,-450.0,0.00019999,2]
[360003702,1746475842407,-450.0,0.00019999,2]
[360003705,1746475842418,-450.0,0.00019999,2]
[360003706,1746475842427,-450.0,0.00019999,2]
[360003708,1746475842436,-450.0,0.00019999,2]
[360003710,1746475842445,-450.0,0.00019999,2]
[360003712,1746475842455,-450.0,0.00019999,2]
[360003714,1746475842464,-450.0,0.00019999,2]
[360003716,1746475842473,-450.0,0.00019999,2]
[360003718,1746475842483,-450.0,0.00019999,2]
[360003720,1746475842492,-484.06,0.00019999,2]
[360003722,1746475842501,-450.0,0.00019999,2]
[360003724,1746475842510,-450.0,0.00019999,2]
[360003726,1746475842520,-450.0,0.00019999,2]
[360003728,1746475842530,-450.0,0.00019999,2]
[360003730,1746475842540,-450.0,0.00019999,2]
[360003732,1746475842549,-336.17,0.00019999,2]
[360003734,1746475842559,-470.34,0.00019999,2]
[360003736,1746475842569,-450.0,0.00019999,2]
[360003739,1746475842579,-343.62,0.00019999,2]
[360003741,1746475842588,-450.0,0.00019999,2]
[360003743,1746475842598,-223.9,0.00019999,2]
[360003745,1746475842607,-450.0,0.00019999,2]
[360003747,1746475842617,-254.36326743,0.00019999,2]
[360003749,1746475842629,-338.26,0.00019999,2]
[360003751,1746475842639,-489.06,0.00019999,2]
[360003753,1746475842649,-450.0,0.00019999,2]
[360003755,1746475842659,-450.0,0.00019999,2]
[360003757,1746475842669,-450.0,0.00019999,2]
[360003759,1746475842678,-450.0,0.00019999,2]
[360003761,1746475842688,-450.0,0.00019999,2]
[360003763,1746475842698,-450.0,0.00019999,2]
[360003765,1746475842707,-450.0,0.00019999,2]
[360003767,1746475842717,-450.0,0.00019999,2]
[360003769,1746475842727,-450.0,0.00019999,2]
[360003771,1746475842736,-270.2,0.00019999,2]
[360003773,1746475842745,-450.0,0.00019999,2]
[360003775,1746475842755,-450.0,0.00019999,2]
[360003777,1746475842767,-450.0,0.00019999,2]
[360003779,1746475842778,-450.0,0.00019999,2]
[360003781,1746475842787,-450.0,0.00019999,2]
[360003783,1746475842796,-450.0,0.00019999,2]
[360003785,1746475842806,-450.0,0.00019999,2]
[360003787,1746475842817,-450.0,0.00019999,2]
[360003789,1746475842826,-450.0,0.00019999,2]
[360003791,1746475842836,-450.0,0.00019999,2]
[360003793,1746475842847,-450.0,0.00019999,2]
[360003795,1746475842857,-450.0,0.00019999,2]
[360003797,1746475842866,-582.0,0.00019999,2]
[360003798,1746475842875,-450.0,0.00019999,2]
[360003801,1746475842889,-450.0,0.00019999,2]
[360003802,1746475842899,-450.0,0.00019999,2]
[360003805,1746475842908,-450.0,0.00019999,2]
[360003806,1746475842918,-450.0,0.00019999,2]
[360003808,1746475842927,-450.0,0.00019999,2]
[360003811,1746475842937,-450.0,0.00019999,2]
[360003812,1746475842946,-450.0,0.00019999,2]
[360003814,1746475842956,-450.0,0.00019999,2]
[360003816,1746475842965,-450.0,0.00019999,2]
[360003818,1746475842975,-450.0,0.00019999,2]
[360003820,1746475842984,-450.0,0.00019999,2]
[360003822,1746475842993,-450.0,0.00019999,2]
[360003824,1746475843002,-450.0,0.00019999,2]
[360003826,1746475843012,-450.0,0.00019999,2]
[360003828,1746475843021,-450.0,0.00019999,2]
[360003830,1746475843030,-450.0,0.00019999,2]
[360003832,1746475843039,-450.0,0.00019999,2]
[360003834,1746475843048,-450.0,0.00019999,2]
[360003836,1746475843057,-196.07,0.00019999,2]
[360003839,1746475843066,-522.08,0.00019999,2]
[360003841,1746475843075,-522.08,0.00019999,2]
[360003843,1746475843085,-522.08,0.00019999,2]
[360003845,1746475843094,-450.0,0.00019999,2]
[360003847,1746475843104,-450.0,0.00019999,2]
[360003849,1746475843114,-450.0,0.00019999,2]
[360003852,1746475843123,-522.08,0.00019999,2]
[360003854,1746475843135,-450.0,0.00019999,2]
[360003857,1746475843145,-522.08,0.00019999,2]
[360003859,1746475843155,-522.08,0.00019999,2]
[360003861,1746475843164,-450.0,0.00019999,2]
[360003863,1746475843174,-450.0,0.00019999,2]
[360003865,1746475843183,-522.08,0.00019999,2]
[360003867,1746475843193,-450.0,0.00019999,2]
[360003869,1746475843203,-522.08,0.00019999,2]
[360003871,1746475843212,-450.0,0.00019999,2]
[360003873,1746475843222,-522.08,0.00019999,2]
[360003875,1746475843231,-450.0,0.00019999,2]
[360003876,1746475843240,-522.08,0.00019999,2]
[360003878,1746475843249,-450.0,0.00019999,2]
[360003880,1746475843259,-522.08,0.00019999,2]
[360003882,1746475843268,-522.08,0.00019999,2]
[360003884,1746475843278,-450.0,0.00019999,2]
[360003886,1746475843287,-522.08,0.00019999,2]
[360003900,1746475843297,-450.0,0.00019999,2]
[360003905,1746475843433,-522.08,0.00019999,2]
[360003907,1746475843443,-450.0,0.00019999,2]
[360003909,1746475843452,-538.2350063,0.00019999,2]
[360003911,1746475843462,-522.08,0.00019999,2]
[360003913,1746475843471,-522.08,0.00019999,2]
[360003915,1746475843481,-522.08,0.00019999,2]
[360003917,1746475843491,-522.08,0.00019999,2]
[360003919,1746475843501,-522.08,0.00019999,2]
[360003921,1746475843510,-522.08,0.00019999,2]
[360003923,1746475843520,-522.08,0.00019999,2]
[360003925,1746475843530,-522.08,0.00019999,2]
[360003927,1746475843539,-522.21,0.00019999,2]
[360003929,1746475843549,-450.0,0.00019999,2]
[360003931,1746475843558,-294.94,0.00019999,2]